fUST/lending_fUST_20250822
["ID","MTS","AMOUNT","RATE_DAILY","PERIOD"]
[380630357,1755825040126,-712.482861,0.0002698,7]
[380630358,1755825040136,-151.0,0.0002698,7]
[380630359,1755825040145,-712.482861,0.0002698,7]
[380630360,1755825040154,-151.0,0.0002698,7]
[380630361,1755825040164,-712.482861,0.0002698,7]
[380630362,1755825040173,-712.482861,0.0002698,7]
[380630363,1755825040183,-151.0,0.0002698,7]
[380630364,1755825040192,-153.182065,0.0002698,7]
[380630365,1755825040202,-151.0,0.0002698,7]
[380630366,1755825040211,-151.0,0.0002698,7]
[380630367,1755825040220,-237.473053,0.0002698,7]
[380630368,1755825040230,-151.0,0.0002698,7]
[380630369,1755825040240,-151.0,0.0002698,7]
[380630370,1755825040249,-151.0,0.0002698,7]
[380630371,1755825040260,-151.0,0.0002698,7]
[380630372,1755825040270,-151.0,0.0002698,7]
[380630373,1755825040279,-151.0,0.0002698,7]
[380630374,1755825040288,-151.0,0.0002698,7]
[380630375,1755825040298,-151.0,0.0002698,7]
[380630376,1755825040308,-151.0,0.0002698,7]
[380630377,1755825040318,-151.0,0.0002698,7]
[380630378,1755825040327,-151.0,0.0002698,7]
[380630379,1755825040338,-151.0,0.0002698,7]
[380630380,1755825040439,-151.0,0.0002698,7]
[380630381,1755825040449,-6855.17372028,0.0002699,2]
[380630382,1755825040459,-182.74543599,0.00026999,2]
[380630383,1755825040468,-151.0,0.00026999,2]
[380630384,1755825040476,-198.64985678,0.00026999,2]
[380630385,1755825040485,-164143.36940444,0.00027,4]
[380630386,1755825040601,-1000.0,0.00026873,7]
[380630397,1755825043199,-432.1534747,0.0002182,2]
[380630441,1755825046117,-2113.59864182,0.0002182,2]
[380630444,1755825046136,-438.25717697,0.0002182,2]
[380630446,1755825046146,-2788.58812365,0.00022611,2]
[380630447,1755825046230,-195.42116979,0.00022611,2]
[380630448,1755825046240,-199.0,0.000259,10]
[380630449,1755825046249,-197.959718,0.0002599,7]
[380630450,1755825046259,-151.0,0.0002599,7]
[380630451,1755825046269,-197.959718,0.0002599,7]
[380630452,1755825046278,-197.959718,0.00026,7]
[380630453,1755825046287,-124.705494,0.00026873,7]
[380630454,1755825046297,-197.959718,0.00026873,7]
[380630455,1755825046306,-9778.76703033,0.00027,4]
[380630456,1755825046321,-4385.41393807,0.00027,4]
[380630461,1755825947099,-640.21734167,0.000199,2]
[380630462,1755825947622,-160.0,0.00021005,2]
[380630463,1755825947642,-640.21734152,0.0002101,2]
[380630464,1755825947661,-160.0,0.0002138,2]
[380630465,1755825947683,-640.21734152,0.00023229,2]
[380630466,1755825947715,-239.58240133,0.00024339,2]
[380630467,1755826050137,-183.63534026,0.00024339,2]
[380630473,1755826232357,-184.88461996,0.00019701,2]
[380630479,1755826232870,-562.08834946,0.000199,2]
[380630480,1755826232880,-562.08834931,0.0002101,2]
[380630481,1755826232889,-562.08834931,0.0002212,2]
[380630482,1755826232899,-3971.47960804,0.0002298,2]
[380630483,1755826232908,-562.08834931,0.00023229,2]
[380630484,1755826232919,-171.11448516,0.00023786,2]
[380630485,1755826232929,-171.11448516,0.00023787,2]
[380630486,1755826232938,-562.08834931,0.00024339,2]
[380630487,1755826232947,-1200.0,0.00024648,2]
[380630488,1755826232957,-300.0,0.00024649,2]
[380630489,1755826232967,-300.0,0.00024649,2]
[380630490,1755826232976,-15366.70153112,0.0002465,2]
[380630491,1755826232986,-160.0,0.0002498,2]
[380630492,1755826232995,-485.0,0.00024982,2]
[380630493,1755826233004,-7263.82669847,0.00025,2]
[380630494,1755826233016,-848.6754484,0.00025,2]
[380630495,1755826233054,-872.06067403,0.00025,2]
[380630496,1755826233063,-10364.0,0.00025,2]
[380630497,1755826233073,-41328.3034596,0.00025,2]
[380633104,1755826300824,1652.0,0.00027455,60]
[380633105,1755826353639,1091.0,0.00027397,120]
[380633107,1755826380785,1108.8412943,0.00027455,120]
[380633120,1755826568084,503.99,0.00015984,2]
[380633121,1755826568681,503.99,0.00015984,2]
[380633122,1755826569239,503.98,0.00015984,2]
[380633123,1755826615784,574.55,0.00015984,10]
[380633124,1755826616407,574.55,0.00015984,10]
[380633126,1755826695515,291.1,0.00015984,2]
[380633127,1755826696077,291.1,0.00015984,2]
[380633128,1755826696611,279.44874582,0.00015984,2]
[380633129,1755826696634,11.65125418,0.00015984,2]
[380633130,1755826781714,1965.0,0.0002739,120]
[380633134,1755826927044,588.399963,0.00019111,2]
[380633137,1755827142131,-155.14699065,0.000198,2]
[380633138,1755827142152,-92.87645195,0.000198,2]
[380633143,1755827390434,158.0,0.000191,2]
[380633175,1755827432647,-69.33568356,0.000198,2]
[380633177,1755827432656,-527.677392,0.000199,2]
[380633179,1755827432665,-527.67739185,0.0002101,2]
[380633181,1755827432674,-160.0,0.00021494,2]
[380633183,1755827432683,-376.00439007,0.00021508,2]
[380633185,1755827432693,-216.95272161,0.00021508,2]
[380633187,1755827432702,-160.0,0.00021508,2]
[380633189,1755827432711,-158.0,0.00022,3]
[380633191,1755827432720,-527.67739185,0.0002212,2]
[380633193,1755827432729,-218.76622444,0.00022415,70]
[380633195,1755827432738,-156.106,0.00022515,2]
[380633197,1755827432748,-6394.37282767,0.00022515,2]
[380633199,1755827432764,-2129.97809288,0.00022515,2]
[380633455,1755827438394,-941.71396452,0.00022515,2]
[380633456,1755827438447,-287.31959747,0.00022515,2]
[380633457,1755827438462,-3138.21816871,0.00022515,2]
[380633851,1755827443552,-474.90965281,0.000199,2]
[380633854,1755827443562,-474.90965266,0.0002212,2]
[380633857,1755827443571,-2804.56439423,0.00022515,2]
[380634171,1755827446539,-12304.56558837,0.00022515,2]
[380634173,1755827446550,-316.5354621,0.00022515,2]
[380634187,1755827446653,-4478.61781722,0.00022515,2]
[380634862,1755827566685,3704.63710333,0.00027457,120]
[380634892,1755828632736,-176.41902825,0.000199,2]
[380634893,1755828632745,-458.6751647,0.000199,2]
[380634894,1755828632755,-458.67516464,0.0002101,2]
[380634895,1755828632764,-141.93488003,0.00021739,2]
[380634896,1755828632775,-22.73433053,0.00021739,2]
[380634897,1755828632784,-160.0,0.00021839,2]
[380634898,1755828632794,-214.65112665,0.0002184,2]
[380634900,1755828632803,-155.579959,0.000219,2]
[380634902,1755828632812,-458.67516464,0.0002212,2]
[380634904,1755828632822,-458.67516464,0.00023229,2]
[380634906,1755828632831,-164.66921055,0.00024267,2]
[380634908,1755828632841,-844.33851978,0.00024279,2]
[380634910,1755828632850,-245.0,0.00024338,2]
[380634912,1755828632860,-300.0,0.00024338,2]
[380634913,1755828632870,-300.0,0.00024338,2]
[380634915,1755828632880,-300.0,0.00024338,2]
[380634917,1755828632890,-232.0,0.00024338,2]
[380634919,1755828632899,-1200.0,0.00024338,2]
[380634921,1755828632909,-458.67516464,0.00024339,2]
[380634923,1755828632919,-23088.637564,0.00024339,2]
[380634925,1755828632929,-602.72470936,0.00024366,2]
[380634927,1755828632938,-151.70994571,0.00024366,2]
[380634929,1755828632948,-156.106,0.00024382,6]
[380634931,1755828632957,-439.5095354,0.00024382,2]
[380634933,1755828632967,-2512.45004713,0.00024582,2]
[380634935,1755828632976,-324.6804896,0.00024682,2]
[380634938,1755828632986,-293.8943201,0.00024682,2]
[380634941,1755828632996,-1000.0,0.000248,2]
[380634944,1755828633007,-1000.0,0.000248,3]
[380634946,1755828633017,-1000.0,0.000248,4]
[380634948,1755828633026,-456.54846002,0.0002488,2]
[380634950,1755828633036,-456.54846002,0.00024885,2]
[380634952,1755828633045,-456.54846002,0.0002489,2]
[380634954,1755828633055,-8484.92707906,0.000249,7]
[380634956,1755828633064,-12500.0,0.000249,7]
[380634958,1755828633074,-889.28897758,0.000249,7]
[380634960,1755828633085,-8945.42262027,0.000249,7]
[380634962,1755828633101,-1128.71906543,0.000249,7]
[380635077,1755828638760,-1536.56933672,0.000249,7]
[380635079,1755828638769,-215.98149753,0.00024973,2]
[380635081,1755828638778,-398.4562012,0.00024973,2]
[380635083,1755828638788,-263.22701297,0.00024973,2]
[380635085,1755828638797,-151.40972213,0.00024973,2]
[380635087,1755828638806,-501.1385683,0.00024973,2]
[380635089,1755828638815,-501.3541663,0.00024973,2]
[380635091,1755828638825,-501.75344846,0.00024973,2]
[380635094,1755828638834,-2512.45004712,0.0002498,2]
[380635097,1755828638843,-221.14,0.0002498,3]
[380635099,1755828638852,-663.47,0.0002498,3]
[380635101,1755828638861,-500.0,0.00024989,2]
[380635103,1755828638870,-377.78309119,0.00024989,2]
[380635105,1755828638879,-500.0,0.00024989,2]
[380635107,1755828638889,-500.0,0.00024989,2]
[380635109,1755828638898,-168.20665902,0.00024989,2]
[380635111,1755828638907,-467.66532672,0.00024989,2]
[380635113,1755828638917,-263.86801779,0.0002499,2]
[380635114,1755828638926,-39.53238321,0.0002499,2]
[380635117,1755828638937,-119492.25624298,0.0002499,2]
[380635119,1755828638948,-34777.17126636,0.0002499,2]
[380635121,1755828638960,-7736.55977945,0.0002499,2]
[380635123,1755828638969,-339.24222421,0.0002499,2]
[380635125,1755828638979,-4206.55,0.00024999,2]
[380635127,1755828638988,-22125.90665291,0.00025,2]
[380635129,1755828638999,-4780.0,0.00025,2]
[380635132,1755828639015,-3488.32236836,0.00025,2]
[380635134,1755828639026,-8361.8294502,0.00025,2]
[380635136,1755828639036,-501.14944964,0.0002506,2]
[380635138,1755828639045,-542.44393821,0.00025083,2]
[380635140,1755828639054,-626.44094492,0.00025083,2]
[380635142,1755828639064,-500.0,0.00025083,2]
[380635143,1755828639073,-503.0740387,0.00025083,2]
[380635144,1755828639083,-500.0,0.00025083,2]
[380635145,1755828639092,-502.73145202,0.00025083,2]
[380635147,1755828639102,-892.66067261,0.00025142,4]
[380635149,1755828639115,-1879.21932739,0.00025142,4]
[380635151,1755828639124,-152.05291877,0.00025172,2]
[380635153,1755828639134,-151.0,0.00025172,2]
[380635155,1755828639143,-502.14068261,0.00025173,2]
[380635157,1755828639152,-80.77317378,0.00025173,2]
[380635159,1755828639163,-419.22682622,0.00025173,2]
[380635161,1755828639173,-151.0,0.00025173,2]
[380635163,1755828639182,-152.28937673,0.00025173,2]
[380635165,1755828639193,-151.0,0.00025173,2]
[380635167,1755828639202,-198.84373495,0.00025173,2]
[380635169,1755828639211,-151.0,0.00025173,2]
[380635171,1755828639221,-151.0,0.00025173,2]
[380635173,1755828639230,-151.0,0.00025173,2]
[380635175,1755828639239,-151.0,0.00025173,2]
[380635177,1755828639248,-240.02464555,0.00025173,2]
[380635179,1755828639257,-189.58831441,0.00025173,2]
[380635181,1755828639266,-500.0,0.00025173,2]
[380635183,1755828639275,-500.0,0.00025173,2]
[380635184,1755828639285,-51.45253254,0.00025173,2]
[380635185,1755828639296,-387.38357806,0.00025173,2]
[380635186,1755828639307,-61.1638894,0.00025173,2]
[380635187,1755828639316,-313.3221492,0.00025173,2]
[380635188,1755828639327,-186.6778508,0.00025173,2]
[380635189,1755828639336,-500.0,0.00025173,2]
[380635190,1755828639345,-500.0,0.00025173,2]
[380635191,1755828639354,-241.87203384,0.00025173,2]
[380635192,1755828639363,-151.0,0.00025173,2]
[380635193,1755828639372,-151.0,0.00025173,2]
[380635194,1755828639381,-202.14682179,0.00025173,2]
[380635195,1755828639391,-151.0,0.00025173,2]
[380635196,1755828639400,-151.0,0.00025173,2]
[380635197,1755828639409,-151.0,0.00025173,2]
[380635198,1755828639420,-151.27062522,0.00025173,2]
[380635199,1755828639429,-151.8126679,0.00025173,2]
[380635200,1755828639438,-742.07880639,0.00025187,2]
[380635201,1755828639448,-257.92119361,0.00025187,2]
[380635202,1755828639458,-1000.0,0.00025187,2]
[380635203,1755828639467,-1000.0,0.00025187,2]
[380635204,1755828639476,-1000.0,0.00025187,2]
[380635205,1755828639485,-1000.0,0.00025187,2]
[380635206,1755828639496,-542.07880639,0.00025187,2]
[380635235,1755828640591,-457.92119361,0.00025187,2]
[380635237,1755828640600,-194.73765837,0.00025187,2]
[380635239,1755828640612,-350.0842972,0.00025187,2]
[380635243,1755828640648,-359.13046147,0.00025187,2]
[380635245,1755828640660,-96.04758296,0.00025187,2]
[380635247,1755828640670,-1000.0,0.00025187,2]
[380635249,1755828640679,-494.45163846,0.00025187,2]
[380635253,1755828640702,-505.54836154,0.00025187,2]
[380635255,1755828640712,-1000.0,0.00025187,2]
[380635257,1755828640722,-1000.0,0.00025187,2]
[380635259,1755828640731,-1000.0,0.00025187,2]
[380635261,1755828640741,-1000.0,0.00025187,2]
[380635263,1755828640750,-1706.21058186,0.00025347,2]
[380635265,1755828640759,-26.5100571,0.00025377,2]
[380635543,1755828643786,-339.72560719,0.00025377,2]
[380635814,1755828646664,-970.14,0.00025377,2]
[380635821,1755828646719,-1176.07438283,0.00025377,2]
[380635823,1755828646729,-220.25054616,0.00025446,2]
[380635825,1755828646739,-40.86895531,0.00025447,2]
[380635827,1755828646750,-110.13104469,0.00025447,2]
[380635829,1755828646759,-151.0,0.00025447,2]
[380635831,1755828646768,-199.24731555,0.00025447,2]
[380635833,1755828646777,-151.0,0.00025447,2]
[380635835,1755828646786,-151.0,0.00025447,2]
[380635837,1755828646795,-500.0,0.00025447,2]
[380635839,1755828646804,-500.0,0.00025447,2]
[380635841,1755828646813,-500.0,0.00025447,2]
[380635843,1755828646822,-531.98626282,0.00025447,2]
[380635845,1755828646832,-500.0,0.00025447,2]
[380635847,1755828646841,-151.0,0.00025447,2]
[380635849,1755828646851,-152.33535069,0.00025447,2]
[380635851,1755828646867,-151.0,0.00025447,2]
[380635853,1755828646877,-221.56180794,0.00025447,2]
[380635855,1755828646887,-52.10821831,0.00025447,2]
[380635857,1755828646907,-202.80473428,0.00025447,2]
[380635859,1755828646917,-458.67516464,0.00025449,3]
[380635861,1755828646939,-1000.0,0.00025631,2]
[380635862,1755828646949,-1012.31154692,0.00025631,2]
[380635864,1755828646958,-151.79785303,0.00025671,2]
[380635866,1755828646968,-151.0,0.00025671,2]
[380635868,1755828646977,-151.94540289,0.00025671,2]
[380635870,1755828646986,-152.1692176,0.00025671,2]
[380635872,1755828646996,-151.0,0.00025671,2]
[380635874,1755828647006,-152.30801343,0.00025671,2]
[380635876,1755828647016,-151.0,0.00025671,2]
[380635878,1755828647025,-151.30300155,0.00025671,2]
[380635880,1755828647035,-151.0,0.00025671,2]
[380635882,1755828647044,-151.15576999,0.00025671,2]
[380635884,1755828647054,-674.16958751,0.00025677,2]
[380635886,1755828647064,-560.16332295,0.00025721,2]
[380635888,1755828647073,-232.30610134,0.00025721,2]
[380635890,1755828647083,-151.95795822,0.00025721,2]
[380635892,1755828647093,-151.49836359,0.00025721,2]
[380635894,1755828647102,-151.0,0.00025721,2]
[380635896,1755828647112,-500.0,0.00025721,2]
[380635898,1755828647121,-500.0,0.00025721,2]
[380635900,1755828647130,-500.0,0.00025721,2]
[380635901,1755828647139,-151.0,0.00025721,2]
[380635903,1755828647149,-151.0,0.00025721,2]
[380635905,1755828647159,-1706.21058186,0.00025735,2]
[380635907,1755828647169,-160.0,0.0002575,2]
[380635909,1755828647178,-295.3022068,0.00025773,2]
[380635911,1755828647188,-501.66913265,0.00025773,2]
[380635913,1755828647197,-500.0,0.00025773,2]
[380635915,1755828647206,-433.34783887,0.00025773,2]
[380635917,1755828647219,-66.65216113,0.00025773,2]
[380635919,1755828647228,-460.70330097,0.00025775,2]
[380636734,1755828910169,151.0,0.00027397,120]
[380636735,1755829099144,151.0,0.00027397,120]
[380636738,1755829538101,-370.97501229,0.00019309,2]
[380636739,1755829538122,-513.80909694,0.000196,2]
[380636740,1755829538143,-160.0,0.000199,2]
[380636741,1755829538166,-437.63303827,0.000199,2]
[380636742,1755829538192,-437.63303802,0.0002101,2]
[380636743,1755829538213,-160.0,0.00021586,2]
[380636744,1755829538236,-164.0,0.00022,2]
[380636745,1755829538257,-12.96314218,0.00022,2]
[380636746,1755829644092,-183.63534026,0.000199,2]
[380636747,1755829711996,155.94524462,0.0002,120]
[380636748,1755829715294,12949.09142944,0.00018,2]
[380636749,1755829715316,6769.00010438,0.00018,2]
[380636770,1755829831910,-298.12556121,0.000199,2]
[380636771,1755829831922,-134.44478572,0.000199,2]
[380636772,1755829831933,-309.0,0.000203,2]
[380636773,1755829831942,-169.35396108,0.0002101,2]
[380636774,1755829831953,-263.21638575,0.0002101,2]
[380636775,1755829831963,-171.0,0.00022,2]
[380636776,1755829831976,-432.57034683,0.0002212,2]
[380636777,1755829831985,-180.71,0.00022323,2]
[380636779,1755829831995,-1000.0,0.000228,2]
[380636780,1755829832004,-1000.0,0.000228,3]
[380636781,1755829832014,-1000.0,0.000228,4]
[380636782,1755829832023,-171.0,0.00023014,7]
[380636784,1755829832032,-191.90836789,0.00024,14]
[380636787,1755829832044,-432.57034683,0.00024339,2]
[380636789,1755829832053,-300.0,0.00024798,2]
[380636792,1755829832063,-300.0,0.00024798,2]
[380636795,1755829832073,-300.0,0.00024798,2]
[380636798,1755829832082,-300.0,0.00024798,2]
[380636800,1755829832092,-300.0,0.00024798,2]
[380636802,1755829832102,-1200.0,0.00024798,2]
[380636804,1755829832111,-7431.07517311,0.00024799,2]
[380636806,1755829832121,-1000.0,0.000248,2]
[380636808,1755829832131,-1000.0,0.000248,3]
[380636810,1755829832140,-1000.0,0.000248,4]
[380636812,1755829832149,-299.2317256,0.00024986,2]
[380636814,1755829832159,-293.8943201,0.00024986,2]
[380636816,1755829832168,-154.00044237,0.00024999,2]
[380636818,1755829832177,-1000.0,0.00025141,2]
[380636820,1755829832187,-1000.0,0.00025141,2]
[380636822,1755829832197,-1000.0,0.00025141,2]
[380636824,1755829832206,-1000.0,0.00025141,2]
[380636825,1755829832215,-859.86134695,0.00025141,2]
[380636826,1755829832224,-5000.0,0.00025271,3]
[380636827,1755829832234,-74.70027645,0.00025449,3]
[380636828,1755829832246,-357.87007038,0.00025449,3]
[380636829,1755829832255,-557.9574393,0.00025533,2]
[380636830,1755829832267,-1161.32659056,0.00025533,2]
[380636831,1755829832276,-1023.72634914,0.0002558,2]
[380636832,1755829832285,-156.106,0.00025633,10]
[380636833,1755829832294,-2590.61227649,0.00025633,2]
[380636834,1755829832303,-184.28,0.0002566,3]
[380636835,1755829832312,-224.36,0.0002566,3]
[380636836,1755829832322,-673.12,0.0002566,3]
[380636837,1755829832332,-469.718066,0.00025665,2]
[380636839,1755829832341,-450.83848496,0.00025669,2]
[380636841,1755829832350,-500.0,0.00025669,2]
[380636843,1755829832359,-500.0,0.00025669,2]
[380636845,1755829832368,-404.16282799,0.00025669,2]
[380636847,1755829832378,-500.0,0.00025669,2]
[380636849,1755829832387,-205.18553771,0.00025669,2]
[380636851,1755829832396,-500.0,0.00025669,2]
[380636853,1755829832406,-331.33385679,0.00025669,2]
[380636855,1755829832415,-371.93131755,0.00025669,2]
[380636857,1755829832424,-496.76653267,0.00025669,2]
[380636858,1755829832434,-650.65290353,0.00025669,2]
[380636859,1755829832443,-500.0,0.00025669,2]
[380636860,1755829832452,-500.0,0.00025669,2]
[380636861,1755829832461,-500.0,0.00025669,2]
[380636862,1755829832470,-178.11410806,0.00025669,2]
[380636864,1755829832480,-500.0,0.00025669,2]
[380636866,1755829832489,-500.0,0.00025669,2]
[380636868,1755829832499,-478.20070642,0.00025669,2]
[380636869,1755829832508,-500.0,0.00025669,2]
[380636871,1755829832517,-500.0,0.00025669,2]
[380636873,1755829832526,-500.0,0.00025669,2]
[380636874,1755829832535,-500.0,0.00025669,2]
[380636875,1755829832544,-500.0,0.00025669,2]
[380636876,1755829832554,-375.38853726,0.00025669,2]
[380636877,1755829832563,-500.0,0.00025669,2]
[380636878,1755829832571,-299.37534372,0.00025669,2]
[380636879,1755829832581,-500.0,0.00025669,2]
[380636880,1755829832590,-500.0,0.00025669,2]
[380636881,1755829832598,-500.0,0.00025669,2]
[380636882,1755829832607,-500.0,0.00025669,2]
[380636883,1755829832616,-500.0,0.00025669,2]
[380636884,1755829832626,-500.0,0.00025669,2]
[380636885,1755829832635,-330.6306279,0.00025669,2]
[380636886,1755829832644,-500.0,0.00025669,2]
[380636887,1755829832653,-500.0,0.00025669,2]
[380636888,1755829832661,-500.0,0.00025669,2]
[380636889,1755829832670,-500.0,0.00025669,2]
[380636890,1755829832680,-500.0,0.00025669,2]
[380636891,1755829832689,-500.0,0.00025669,2]
[380636892,1755829832698,-352.85702916,0.00025669,2]
[380636893,1755829832707,-151.0,0.0002567,7]
[380636894,1755829832716,-151.0,0.0002567,7]
[380636895,1755829832725,-151.0,0.0002567,7]
[380636896,1755829832734,-152.795762,0.0002567,7]
[380636897,1755829832743,-263.86801779,0.0002567,2]
[380636898,1755829832752,-11669.51489586,0.0002567,2]
[380636899,1755829832766,-1924.49681662,0.0002567,2]
[380636915,1755829837799,-425.055,0.00025573,2]
[380636916,1755829837812,-1572.48334167,0.00025573,2]
[380636917,1755829837826,-1041.5700025,0.00025573,2]
[380636918,1755829837966,-5536.96607194,0.00025573,2]
[380636919,1755829837981,-388.45598339,0.0002567,2]
[380636920,1755829837990,-609414.75072852,0.0002567,2]
[380636921,1755829837999,-500.62388619,0.00025673,2]
[380636922,1755829838009,-500.64421565,0.00025673,2]
[380636923,1755829838019,-500.0,0.00025673,2]
[380636924,1755829838028,-377.19185305,0.00025673,2]
[380636925,1755829838037,-250.0,0.00025673,2]
[380636926,1755829838048,-275.06555528,0.00025673,2]
[380636927,1755829838058,-500.0,0.00025673,2]
[380636928,1755829838067,-602.93108077,0.00025673,2]
[380636929,1755829838076,-211.8999089,0.00025673,2]
[380636930,1755829838085,-472.5242041,0.00025673,2]
[380636931,1755829838094,-500.95557612,0.00025673,2]
[380636932,1755829838103,-500.76090604,0.00025673,2]
[380636933,1755829838112,-501.09899142,0.00025673,2]
[380636934,1755829838122,-465.78228169,0.00025673,2]
[380636935,1755829838132,-502.5053185,0.00025673,2]
[380636936,1755829838141,-500.0,0.00025673,2]
[380636937,1755829838151,-500.0,0.00025673,2]
[380636938,1755829838160,-501.31653892,0.00025673,2]
[380636939,1755829838169,-504.15682338,0.00025673,2]
[380636940,1755829838178,-500.74117236,0.00025673,2]
[380636941,1755829838187,-500.75966013,0.00025673,2]
[380636942,1755829838196,-500.0,0.00025673,2]
[380636943,1755829838205,-500.6015621,0.00025673,2]
[380636944,1755829838214,-500.0,0.00025673,2]
[380636945,1755829838223,-500.0,0.00025673,2]
[380636946,1755829838232,-500.0,0.00025673,2]
[380636947,1755829838241,-500.0,0.00025673,2]
[380636948,1755829838251,-872.096812,0.0002568,7]
[380636949,1755829838260,-151.0,0.0002568,7]
[380636950,1755829838269,-872.096812,0.0002568,7]
[380636951,1755829838278,-151.0,0.0002568,7]
[380636952,1755829838288,-872.096812,0.0002568,7]
[380636953,1755829838297,-161.092971,0.0002568,7]
[380636954,1755829838306,-872.096812,0.0002568,7]
[380636955,1755829838315,-224.961812,0.0002568,7]
[380636956,1755829838325,-224.961812,0.0002568,7]
[380636957,1755829838334,-224.961812,0.0002568,7]
[380636958,1755829838344,-224.961812,0.0002568,7]
[380636959,1755829838354,-712.482861,0.0002568,7]
[380636960,1755829838363,-712.482861,0.0002568,7]
[380636961,1755829838373,-712.482861,0.0002568,7]
[380636962,1755829838383,-712.482861,0.0002568,7]
[380636963,1755829838392,-151.0,0.0002568,7]
[380636964,1755829838402,-151.0,0.0002568,7]
[380636965,1755829838411,-186.755591,0.0002568,7]
[380636966,1755829838421,-184.06939,0.0002568,7]
[380636967,1755829838429,-153.419537,0.0002568,7]
[380636968,1755829838440,-184.06939,0.0002568,7]
[380636969,1755829838449,-161.405387,0.0002568,7]
[380636970,1755829838459,-184.06939,0.0002568,7]
[380636971,1755829838468,-184.06939,0.0002568,7]
[380636972,1755829838477,-4044.24,0.0002568,2]
[380636973,1755829838486,-151.0,0.0002568,7]
[380636974,1755829838495,-164.190757,0.0002568,7]
[380636975,1755829838504,-151.0,0.0002568,7]
[380636976,1755829838513,-153.026362,0.0002568,7]
[380636977,1755829838523,-151.0,0.0002568,7]
[380636978,1755829838531,-151.0,0.0002568,7]
[380636979,1755829838540,-151.0,0.0002568,7]
[380636980,1755829838550,-151.0,0.0002568,7]
[380636981,1755829838559,-151.0,0.0002568,7]
[380636982,1755829838569,-151.0,0.0002568,7]
[380636983,1755829838578,-151.0,0.0002568,7]
[380636984,1755829838587,-151.0,0.0002568,7]
[380636985,1755829838595,-151.0,0.0002568,7]
[380636986,1755829838604,-151.569489,0.0002568,7]
[380636987,1755829838613,-506.69617909,0.0002568,7]
[380636988,1755829838622,-198.711341,0.0002568,7]
[380636989,1755829838632,-155.555548,0.0002568,7]
[380636990,1755829838641,-152.694886,0.0002569,7]
[380636991,1755829838650,-151.0,0.0002569,7]
[380636992,1755829838660,-151.902612,0.0002569,7]
[380636993,1755829838669,-151.0,0.0002569,7]
[380636994,1755829838678,-152.174289,0.0002569,7]
[380636995,1755829838689,-151.0,0.0002569,7]
[380636996,1755829838698,-237.587861,0.0002569,7]
[380636997,1755829838707,-151.0,0.0002569,7]
[380636998,1755829838716,-153.601232,0.0002569,7]
[380636999,1755829838725,-151.0,0.0002569,7]
[380637000,1755829838734,-151.425014,0.0002569,7]
[380637001,1755829838743,-151.809627,0.0002569,7]
[380637002,1755829838752,-152.31358,0.0002569,7]
[380637003,1755829838761,-151.0,0.0002569,7]
[380637004,1755829838771,-151.0,0.0002569,7]
[380637005,1755829838780,-872.096812,0.0002569,7]
[380637006,1755829838790,-151.0,0.0002569,7]
[380637007,1755829838801,-872.096812,0.0002569,7]
[380637008,1755829838810,-151.0,0.0002569,7]
[380637009,1755829838819,-872.096812,0.0002569,7]
[380637010,1755829838828,-872.096812,0.0002569,7]
[380637011,1755829838837,-224.961812,0.0002569,7]
[380637012,1755829838846,-224.961812,0.0002569,7]
[380637013,1755829838855,-224.961812,0.0002569,7]
[380637014,1755829838971,-224.961812,0.0002569,7]
[380637015,1755829838990,-712.482861,0.0002569,7]
[380637016,1755829839003,-712.482861,0.0002569,7]